[Event "*** Titled Tuesday Blitz"]
[Site "Chess.com"]
[Date "2021.02.02"]
[Round "3"]
[White "Isajevsky_Anton"]
[Black "ajdemipopushi"]
[Result "1-0"]
[WhiteElo "2520"]
[BlackElo "2321"]
[TimeControl "180+1"]
[EndTime "10:32:20 PST"]
[Termination "Isajevsky_Anton won by resignation"]

1. c4 {[%clk 0:03:00.9]} 1... c5 {[%clk 0:02:59.1]} 2. Nc3 {[%clk 0:02:52.9]}
2... g6 {[%clk 0:02:58.5]} 3. Nf3 {[%clk 0:02:51.9]} 3... Bg7 {[%clk 0:02:58.5]}
4. e3 {[%clk 0:02:51]} 4... Nf6 {[%clk 0:02:56.5]} 5. a3 {[%clk 0:02:47.2]} 5...
O-O {[%clk 0:02:53.3]} 6. Qc2 {[%clk 0:02:44.2]} 6... d5 {[%clk 0:02:49.9]} 7.
cxd5 {[%clk 0:02:43.8]} 7... Nxd5 {[%clk 0:02:49.7]} 8. Bc4 {[%clk 0:02:42.9]}
8... Nb6 {[%clk 0:02:26.9]} 9. Ba2 {[%clk 0:02:42.3]} 9... Bf5 {[%clk
0:02:17.1]} 10. Ne4 {[%clk 0:02:39.9]} 10... N8d7 {[%clk 0:02:03.7]} 11. Nh4
{[%clk 0:02:34.8]} 11... Bxe4 {[%clk 0:01:57.5]} 12. Qxe4 {[%clk 0:02:34.3]}
12... e6 {[%clk 0:01:54.6]} 13. Nf3 {[%clk 0:02:28.7]} 13... Nd5 {[%clk
0:01:54.1]} 14. O-O {[%clk 0:02:23.6]} 14... b5 {[%clk 0:01:48.1]} 15. d3 {[%clk
0:02:16.9]} 15... Rc8 {[%clk 0:01:42.3]} 16. Rb1 {[%clk 0:01:57.7]} 16... a6
{[%clk 0:01:41.2]} 17. Bd2 {[%clk 0:01:54.2]} 17... Qb6 {[%clk 0:01:35.4]} 18.
Rfd1 {[%clk 0:01:41.4]} 18... Rfd8 {[%clk 0:01:34.7]} 19. Be1 {[%clk 0:01:41]}
19... h6 {[%clk 0:01:27.7]} 20. Qh4 {[%clk 0:01:29]} 20... g5 {[%clk 0:01:15.4]}
21. Qg3 {[%clk 0:01:24.3]} 21... Ne7 {[%clk 0:01:11]} 22. h4 {[%clk 0:01:17.4]}
22... Nf5 {[%clk 0:01:08.1]} 23. Qh3 {[%clk 0:01:13.3]} 23... gxh4 {[%clk
0:00:49.8]} 24. Bc3 {[%clk 0:01:07.2]} 24... Nf6 {[%clk 0:00:38.6]} 25. Nxh4
{[%clk 0:01:02.9]} 25... Nxh4 {[%clk 0:00:37]} 26. Qxh4 {[%clk 0:01:03]} 26...
Nd5 {[%clk 0:00:35.2]} 27. Bxg7 {[%clk 0:00:47.6]} 27... Kxg7 {[%clk 0:00:35.2]}
28. Rbc1 {[%clk 0:00:46.3]} 28... Nf6 {[%clk 0:00:31.9]} 29. Qg3+ {[%clk
0:00:41.5]} 29... Kf8 {[%clk 0:00:31.8]} 30. Qh4 {[%clk 0:00:33.3]} 30... Kg7
{[%clk 0:00:31.9]} 31. d4 {[%clk 0:00:17.3]} 31... c4 {[%clk 0:00:28.4]} 32. Bb1
{[%clk 0:00:16.7]} 32... Qd6 {[%clk 0:00:26.7]} 33. e4 {[%clk 0:00:16.4]} 33...
e5 {[%clk 0:00:16.5]} 34. Rc3 {[%clk 0:00:10.8]} 34... exd4 {[%clk 0:00:11.9]}
35. Rg3+ {[%clk 0:00:10.6]} 35... Kf8 {[%clk 0:00:11.6]} 36. Qxh6+ {[%clk
0:00:09.5]} 36... Ke7 {[%clk 0:00:12]} 37. e5 {[%clk 0:00:06.1]} 37... Qxe5
{[%clk 0:00:09]} 38. Qd2 {[%clk 0:00:06.6]} 38... Ne4 {[%clk 0:00:05.7]} 39.
Bxe4 {[%clk 0:00:06.2]} 39... Qxe4 {[%clk 0:00:05.3]} 40. Re1 {[%clk 0:00:06.5]}
40... Qe6 {[%clk 0:00:05.4]} 41. Rxe6+ {[%clk 0:00:05.9]} 41... fxe6 {[%clk
0:00:05.8]} 42. Rg7+ {[%clk 0:00:03.8]} 42... Kd6 {[%clk 0:00:05.6]} 43. Qf4+
{[%clk 0:00:04.3]} 43... Kc5 {[%clk 0:00:05.1]} 44. Qe5+ {[%clk 0:00:03.9]}
44... Rd5 {[%clk 0:00:03.8]} 45. Qxe6 {[%clk 0:00:03.8]} 45... d3 {[%clk
0:00:03.3]} 46. Qxc8+ {[%clk 0:00:03.3]} 46... Kd4 {[%clk 0:00:03.2]} 47. Qg4+
{[%clk 0:00:02.6]} 47... Kc5 {[%clk 0:00:03.4]} 48. Qd1 {[%clk 0:00:03.5]} 48...
a5 {[%clk 0:00:02.9]} 49. f4 {[%clk 0:00:03.8]} 49... b4 {[%clk 0:00:03.3]} 50.
axb4+ {[%clk 0:00:03.2]} 50... axb4 {[%clk 0:00:03.4]} 51. Rg5 {[%clk
0:00:04.1]} 51... Rxg5 {[%clk 0:00:01.7]} 52. fxg5 {[%clk 0:00:04.3]} 52... Kd4
{[%clk 0:00:02.4]} 53. g6 {[%clk 0:00:04.6]} 53... c3 {[%clk 0:00:03]} 54. bxc3+
{[%clk 0:00:05.4]} 54... bxc3 {[%clk 0:00:03.2]} 55. g7 {[%clk 0:00:06.3]} 55...
d2 {[%clk 0:00:03.7]} 56. Qc2 {[%clk 0:00:06.4]} 56... Ke3 {[%clk 0:00:03.6]}
57. Kf1 {[%clk 0:00:06.9]} 1-0

[Event "*** Titled Tuesday Blitz"]
[Site "Chess.com"]
[Date "2021.02.02"]
[Round "3"]
[White "Rsnr"]
[Black "enriquetejedor"]
[Result "1-0"]
[WhiteElo "2767"]
[BlackElo "2515"]
[TimeControl "180+1"]
[EndTime "10:32:22 PST"]
[Termination "Rsnr won on time"]

1. d4 {[%clk 0:03:00.9]} 1... d5 {[%clk 0:02:59.2]} 2. c4 {[%clk 0:03:01.2]}
2... c6 {[%clk 0:02:57.1]} 3. Nf3 {[%clk 0:02:59.5]} 3... Nf6 {[%clk 0:02:56.2]}
4. Qc2 {[%clk 0:03:00]} 4... e6 {[%clk 0:02:46.8]} 5. Bf4 {[%clk 0:02:59]} 5...
Nbd7 {[%clk 0:02:33.1]} 6. e3 {[%clk 0:02:58.4]} 6... Be7 {[%clk 0:02:22.4]} 7.
h3 {[%clk 0:02:58.2]} 7... O-O {[%clk 0:02:22.5]} 8. Bd3 {[%clk 0:02:58.2]} 8...
c5 {[%clk 0:02:18.6]} 9. cxd5 {[%clk 0:02:55]} 9... Nxd5 {[%clk 0:02:07.3]} 10.
Bxh7+ {[%clk 0:02:54.7]} 10... Kh8 {[%clk 0:02:07.6]} 11. Be4 {[%clk 0:02:53.2]}
11... Nxf4 {[%clk 0:02:06.5]} 12. exf4 {[%clk 0:02:54.1]} 12... cxd4 {[%clk
0:02:07.1]} 13. Nxd4 {[%clk 0:02:42.9]} 13... Nc5 {[%clk 0:01:53.4]} 14. Nb3
{[%clk 0:02:42.9]} 14... Nxb3 {[%clk 0:01:47.8]} 15. axb3 {[%clk 0:02:42.9]}
15... Bd7 {[%clk 0:01:32]} 16. O-O {[%clk 0:02:42.1]} 16... Rc8 {[%clk
0:01:27.8]} 17. Nc3 {[%clk 0:02:42.2]} 17... b5 {[%clk 0:01:25.2]} 18. Rxa7
{[%clk 0:02:33.3]} 18... Bc5 {[%clk 0:00:32.9]} 19. Rb7 {[%clk 0:02:32.7]} 19...
b4 {[%clk 0:00:32.1]} 20. Rd1 {[%clk 0:02:26.7]} 20... Rc7 {[%clk 0:00:31]} 21.
Nb5 {[%clk 0:02:11.8]} 21... Rxb7 {[%clk 0:00:21.4]} 22. Bxb7 {[%clk 0:02:10.3]}
22... Qe7 {[%clk 0:00:12.8]} 23. Rxd7 {[%clk 0:02:05.4]} 23... Bxf2+ {[%clk
0:00:05.1]} 24. Qxf2 {[%clk 0:01:54.5]} 24... Qxd7 {[%clk 0:00:06]} 25. Qc5
{[%clk 0:01:27.3]} 25... Rb8 {[%clk 0:00:03.6]} 26. Bc6 {[%clk 0:01:27.4]} 26...
Qd1+ {[%clk 0:00:03.6]} 27. Kh2 {[%clk 0:01:28.1]} 27... Qd2 {[%clk 0:00:02.6]}
28. Qe5 {[%clk 0:01:23.6]} 28... Rd8 {[%clk 0:00:02.2]} 29. Be4 {[%clk
0:01:21.1]} 29... Kg8 {[%clk 0:00:02.1]} 30. Nc7 {[%clk 0:01:12.2]} 30... Qd6
{[%clk 0:00:02]} 31. Qxd6 {[%clk 0:00:48.6]} 31... Rxd6 {[%clk 0:00:02.9]} 32.
Kg3 {[%clk 0:00:49.4]} 32... Rd2 {[%clk 0:00:03]} 33. Na6 {[%clk 0:00:28.7]}
33... Rxb2 {[%clk 0:00:03]} 34. Nc5 {[%clk 0:00:29.3]} 34... g6 {[%clk
0:00:02.2]} 35. Bd3 {[%clk 0:00:28.7]} 35... Kf8 {[%clk 0:00:01.1]} 36. Bc4
{[%clk 0:00:29.1]} 36... Ke7 {[%clk 0:00:01.5]} 37. Na6 {[%clk 0:00:29.6]} 37...
Rb1 {[%clk 0:00:01.3]} 38. Nxb4 {[%clk 0:00:30]} 38... Kd6 {[%clk 0:00:01.8]}
39. Nd3 {[%clk 0:00:30.2]} 39... Ra1 {[%clk 0:00:01.9]} 40. Ne5 {[%clk 0:00:30]}
40... Ke7 {[%clk 0:00:01.9]} 41. Kf3 {[%clk 0:00:30.2]} 41... Rb1 {[%clk
0:00:02.1]} 42. g3 {[%clk 0:00:30.3]} 42... Kf8 {[%clk 0:00:02.2]} 43. h4 {[%clk
0:00:30.7]} 43... Kg7 {[%clk 0:00:02.6]} 44. Nd3 {[%clk 0:00:31.4]} 44... Kf8
{[%clk 0:00:02.5]} 45. Nf2 {[%clk 0:00:27.5]} 45... Ke7 {[%clk 0:00:02.7]} 46.
Ne4 {[%clk 0:00:27.6]} 46... f6 {[%clk 0:00:02.9]} 47. Nc5 {[%clk 0:00:27.2]}
47... e5 {[%clk 0:00:03.3]} 48. fxe5 {[%clk 0:00:28.1]} 48... fxe5 {[%clk
0:00:04.2]} 49. Nd3 {[%clk 0:00:27.9]} 49... Kf6 {[%clk 0:00:04]} 50. Nc5 {[%clk
0:00:23.8]} 50... Rb2 {[%clk 0:00:02.4]} 51. Ne4+ {[%clk 0:00:24.1]} 51... Ke7
{[%clk 0:00:02.5]} 52. Kg4 {[%clk 0:00:23]} 52... Kf8 {[%clk 0:00:02.4]} 53. Kg5
{[%clk 0:00:22.8]} 53... Kg7 {[%clk 0:00:02.7]} 54. g4 {[%clk 0:00:21.6]} 54...
Rb1 {[%clk 0:00:03]} 55. Nc5 {[%clk 0:00:21]} 55... Re1 {[%clk 0:00:02.7]} 56.
Ne6+ {[%clk 0:00:21.3]} 56... Kf7 {[%clk 0:00:02.2]} 57. Nf4+ {[%clk 0:00:21.7]}
57... Ke7 {[%clk 0:00:02.7]} 58. Nxg6+ {[%clk 0:00:22.5]} 58... Kd6 {[%clk
0:00:03.2]} 59. h5 {[%clk 0:00:22.8]} 59... e4 {[%clk 0:00:03.7]} 60. h6 {[%clk
0:00:23.5]} 60... e3 {[%clk 0:00:04.2]} 61. h7 {[%clk 0:00:24.2]} 61... Rh1
{[%clk 0:00:01.6]} 62. h8=Q {[%clk 0:00:24.2]} 62... Rxh8 {[%clk 0:00:01.5]} 63.
Nxh8 {[%clk 0:00:25.1]} 63... Kc5 {[%clk 0:00:01.7]} 64. Kf6 {[%clk 0:00:24.5]}
64... e2 {[%clk 0:00:02.6]} 65. Bxe2 {[%clk 0:00:24.4]} 1-0

[Event "*** Titled Tuesday Blitz"]
[Site "Chess.com"]
[Date "2021.02.02"]
[Round "3"]
[White "Margency"]
[Black "kirillshevchenko"]
[Result "1/2-1/2"]
[WhiteElo "2630"]
[BlackElo "2847"]
[TimeControl "180+1"]
[EndTime "10:32:24 PST"]
[Termination "Game drawn - insufficient material"]

1. e4 {[%clk 0:03:00.9]} 1... e5 {[%clk 0:02:59.4]} 2. Nf3 {[%clk 0:03:00.7]}
2... d6 {[%clk 0:02:59.8]} 3. d4 {[%clk 0:03:00.5]} 3... exd4 {[%clk 0:03:00.7]}
4. Nxd4 {[%clk 0:03:01.1]} 4... Nf6 {[%clk 0:03:01.3]} 5. Nc3 {[%clk 0:03:01.3]}
5... g6 {[%clk 0:03:02]} 6. Bg5 {[%clk 0:02:58.6]} 6... Bg7 {[%clk 0:03:00.5]}
7. Qd2 {[%clk 0:02:58.6]} 7... h6 {[%clk 0:02:51.8]} 8. Bf4 {[%clk 0:02:50]}
8... Nc6 {[%clk 0:02:50.5]} 9. Bb5 {[%clk 0:02:41.5]} 9... Bd7 {[%clk
0:02:35.6]} 10. Bxc6 {[%clk 0:02:39.6]} 10... bxc6 {[%clk 0:02:35.7]} 11. O-O
{[%clk 0:02:39.2]} 11... c5 {[%clk 0:02:18.1]} 12. Nf3 {[%clk 0:02:19]} 12...
Nh5 {[%clk 0:02:02.3]} 13. Be3 {[%clk 0:02:12.2]} 13... Rb8 {[%clk 0:01:58.7]}
14. e5 {[%clk 0:02:02.5]} 14... Bg4 {[%clk 0:01:53.5]} 15. exd6 {[%clk
0:01:57.9]} 15... cxd6 {[%clk 0:01:42.6]} 16. Rfe1 {[%clk 0:01:50.6]} 16... O-O
{[%clk 0:01:37.1]} 17. Bxh6 {[%clk 0:01:47.1]} 17... Bxf3 {[%clk 0:01:36.7]} 18.
Bxg7 {[%clk 0:01:39.4]} 18... Kxg7 {[%clk 0:01:28.4]} 19. gxf3 {[%clk
0:01:38.5]} 19... Qf6 {[%clk 0:01:25]} 20. Nd5 {[%clk 0:01:26.6]} 20... Qxf3
{[%clk 0:01:23]} 21. Re3 {[%clk 0:01:24.3]} 21... Qg4+ {[%clk 0:01:21.6]} 22.
Kh1 {[%clk 0:01:23.3]} 22... Rxb2 {[%clk 0:01:03]} 23. Rg1 {[%clk 0:01:18]}
23... Qc4 {[%clk 0:00:50.6]} 24. Re7 {[%clk 0:01:04.8]} 24... Qxc2 {[%clk
0:00:21.9]} 25. Qg5 {[%clk 0:00:57.7]} 25... Kh7 {[%clk 0:00:16.8]} 26. Re3
{[%clk 0:00:20.7]} 26... Rb1 {[%clk 0:00:08.1]} 27. Rxb1 {[%clk 0:00:10.4]}
27... Qxb1+ {[%clk 0:00:07.9]} 28. Kg2 {[%clk 0:00:11]} 28... Qf5 {[%clk
0:00:06.8]} 29. Qxf5 {[%clk 0:00:07.9]} 29... gxf5 {[%clk 0:00:07.4]} 30. Re7
{[%clk 0:00:08.1]} 30... a5 {[%clk 0:00:04.9]} 31. Rd7 {[%clk 0:00:07.5]} 31...
Kg6 {[%clk 0:00:02.3]} 32. Rxd6+ {[%clk 0:00:07.5]} 32... f6 {[%clk 0:00:02.8]}
33. Rc6 {[%clk 0:00:07.8]} 33... Rb8 {[%clk 0:00:01.8]} 34. Rxc5 {[%clk
0:00:07.9]} 34... a4 {[%clk 0:00:02.2]} 35. Ra5 {[%clk 0:00:08.3]} 35... Rb2
{[%clk 0:00:01.9]} 36. Rxa4 {[%clk 0:00:07.9]} 36... Ng7 {[%clk 0:00:02.6]} 37.
Nf4+ {[%clk 0:00:07.4]} 37... Kg5 {[%clk 0:00:02.6]} 38. h4+ {[%clk 0:00:07.2]}
38... Kh6 {[%clk 0:00:02.5]} 39. Ra6 {[%clk 0:00:07.2]} 39... Nh5 {[%clk
0:00:01.9]} 40. Nxh5 {[%clk 0:00:05.7]} 40... Kxh5 {[%clk 0:00:02.3]} 41. a4
{[%clk 0:00:05.3]} 41... Kxh4 {[%clk 0:00:01.9]} 42. a5 {[%clk 0:00:05.6]} 42...
Kg5 {[%clk 0:00:01.9]} 43. Rb6 {[%clk 0:00:05.7]} 43... Ra2 {[%clk 0:00:02.4]}
44. a6 {[%clk 0:00:06.6]} 44... Ra3 {[%clk 0:00:02.8]} 45. Kf1 {[%clk
0:00:06.1]} 45... Kg4 {[%clk 0:00:02.3]} 46. Rxf6 {[%clk 0:00:06.1]} 46... f4
{[%clk 0:00:02.8]} 47. Kg2 {[%clk 0:00:05.7]} 47... f3+ {[%clk 0:00:02.2]} 48.
Kh2 {[%clk 0:00:06]} 48... Ra2 {[%clk 0:00:02.5]} 49. Rg6+ {[%clk 0:00:06.1]}
49... Kf5 {[%clk 0:00:02.5]} 50. Rb6 {[%clk 0:00:06.1]} 50... Rxf2+ {[%clk
0:00:02.4]} 51. Kg3 {[%clk 0:00:06.8]} 51... Ra2 {[%clk 0:00:02.7]} 52. Kxf3
{[%clk 0:00:07.2]} 52... Ke5 {[%clk 0:00:03.3]} 53. Ke3 {[%clk 0:00:07.5]} 53...
Kd5 {[%clk 0:00:03.7]} 54. Rh6 {[%clk 0:00:07.3]} 54... Kc5 {[%clk 0:00:03.6]}
55. Kd3 {[%clk 0:00:07.6]} 55... Kb5 {[%clk 0:00:03.4]} 56. Kc3 {[%clk
0:00:07.7]} 56... Rxa6 {[%clk 0:00:03.2]} 57. Rxa6 {[%clk 0:00:08.6]} 57... Kxa6
{[%clk 0:00:04.1]} 1/2-1/2

[Event "*** Titled Tuesday Blitz"]
[Site "Chess.com"]
[Date "2021.02.02"]
[Round "3"]
[White "PavelShkapenko"]
[Black "CrushingKings"]
[Result "0-1"]
[WhiteElo "2728"]
[BlackElo "2348"]
[TimeControl "180+1"]
[EndTime "10:32:24 PST"]
[Termination "CrushingKings won by resignation"]

1. e4 {[%clk 0:03:00.9]} 1... c5 {[%clk 0:02:59.2]} 2. c3 {[%clk 0:03:00.1]}
2... Nf6 {[%clk 0:02:57.2]} 3. e5 {[%clk 0:03:00.1]} 3... Nd5 {[%clk 0:02:57.7]}
4. d4 {[%clk 0:03:00.1]} 4... cxd4 {[%clk 0:02:57.4]} 5. cxd4 {[%clk 0:03:00.6]}
5... d6 {[%clk 0:02:56.1]} 6. Nf3 {[%clk 0:02:59.4]} 6... Nc6 {[%clk 0:02:55]}
7. Bc4 {[%clk 0:02:59.3]} 7... Nb6 {[%clk 0:02:54.6]} 8. Bb3 {[%clk 0:02:59.1]}
8... dxe5 {[%clk 0:02:47.4]} 9. d5 {[%clk 0:02:58.5]} 9... Na5 {[%clk
0:02:45.1]} 10. Nc3 {[%clk 0:02:56.3]} 10... Bg4 {[%clk 0:02:36.9]} 11. Be3
{[%clk 0:02:46.2]} 11... Nxb3 {[%clk 0:01:49.2]} 12. Qxb3 {[%clk 0:02:41.5]}
12... Bxf3 {[%clk 0:01:45.6]} 13. gxf3 {[%clk 0:02:40.4]} 13... g6 {[%clk
0:01:44.9]} 14. O-O-O {[%clk 0:02:34]} 14... Bg7 {[%clk 0:01:37.6]} 15. Kb1
{[%clk 0:02:26.2]} 15... O-O {[%clk 0:01:37]} 16. Ne4 {[%clk 0:02:26.2]} 16...
Nc8 {[%clk 0:01:21.5]} 17. Qxb7 {[%clk 0:02:22.3]} 17... Nd6 {[%clk 0:01:21.9]}
18. Qa6 {[%clk 0:02:21.6]} 18... Qd7 {[%clk 0:01:19]} 19. Bc5 {[%clk 0:02:17.1]}
19... Rfd8 {[%clk 0:01:01.5]} 20. Rc1 {[%clk 0:01:55.1]} 20... Qf5 {[%clk
0:00:59.1]} 21. Bxd6 {[%clk 0:01:52.2]} 21... Rxd6 {[%clk 0:00:38.3]} 22. Qd3
{[%clk 0:01:44.9]} 22... Rad8 {[%clk 0:00:37.1]} 23. Rc5 {[%clk 0:01:40.3]}
23... e6 {[%clk 0:00:35.9]} 24. Qc2 {[%clk 0:01:07.3]} 24... Qxf3 {[%clk
0:00:33.9]} 25. Rc1 {[%clk 0:01:06.1]} 25... Rxd5 {[%clk 0:00:33.7]} 26. Rc3
{[%clk 0:01:00]} 26... Qf5 {[%clk 0:00:29.9]} 27. f3 {[%clk 0:00:59.8]} 27...
Qf4 {[%clk 0:00:21.6]} 28. a3 {[%clk 0:00:55]} 28... f5 {[%clk 0:00:21]} 29. Nc5
{[%clk 0:00:47.8]} 29... R5d6 {[%clk 0:00:08.3]} 30. Qb3 {[%clk 0:00:46.2]}
30... Rb6 {[%clk 0:00:07.7]} 31. Qc4 {[%clk 0:00:40.8]} 31... Rd2 {[%clk
0:00:07.6]} 32. b4 {[%clk 0:00:27.3]} 32... Qxc4 {[%clk 0:00:07.4]} 33. Rxc4
{[%clk 0:00:27.5]} 33... e4 {[%clk 0:00:08.1]} 34. Nxe6 {[%clk 0:00:24.8]} 34...
Rb2+ {[%clk 0:00:07.5]} 35. Ka1 {[%clk 0:00:25.1]} 35... Bf6 {[%clk 0:00:05.8]}
36. Rc8+ {[%clk 0:00:19.3]} 36... Kf7 {[%clk 0:00:06.1]} 37. Nd8+ {[%clk
0:00:19.6]} 37... Kg7 {[%clk 0:00:05.5]} 38. R8c7+ {[%clk 0:00:15.6]} 38... Kh6
{[%clk 0:00:05]} 39. Nf7+ {[%clk 0:00:15.5]} 39... Kh5 {[%clk 0:00:05.4]} 40. f4
{[%clk 0:00:14.3]} 40... R2xb4+ {[%clk 0:00:04.3]} 41. Ne5 {[%clk 0:00:14.5]}
41... Bxe5+ {[%clk 0:00:03.3]} 42. fxe5 {[%clk 0:00:14.8]} 42... R4b5 {[%clk
0:00:04]} 43. Rxh7+ {[%clk 0:00:14.4]} 43... Kg5 {[%clk 0:00:03.9]} 44. Re7
{[%clk 0:00:12.2]} 44... Kf4 {[%clk 0:00:03.8]} 45. e6 {[%clk 0:00:12.3]} 45...
Re5 {[%clk 0:00:03.2]} 46. Rxa7 {[%clk 0:00:11]} 46... Rexe6 {[%clk 0:00:02.5]}
47. Rac7 {[%clk 0:00:11]} 47... e3 {[%clk 0:00:02.5]} 48. Rf1+ {[%clk
0:00:08.9]} 48... Kg5 {[%clk 0:00:03.1]} 49. Rg1+ {[%clk 0:00:08.4]} 49... Kf6
{[%clk 0:00:04]} 50. Rcc1 {[%clk 0:00:08.1]} 50... f4 {[%clk 0:00:04.5]} 51. h4
{[%clk 0:00:07.9]} 51... g5 {[%clk 0:00:05.4]} 52. hxg5+ {[%clk 0:00:07.7]}
52... Kf5 {[%clk 0:00:06]} 53. Rcf1 {[%clk 0:00:07.6]} 53... e2 {[%clk
0:00:05.8]} 54. Re1 {[%clk 0:00:06.2]} 54... f3 {[%clk 0:00:06.4]} 55. g6 {[%clk
0:00:06.8]} 55... f2 {[%clk 0:00:06.7]} 56. g7 {[%clk 0:00:07.1]} 56... fxe1=Q+
{[%clk 0:00:06.6]} 57. Rxe1 {[%clk 0:00:07.4]} 57... Rb8 {[%clk 0:00:06.1]} 58.
Rg1 {[%clk 0:00:05.8]} 58... e1=Q+ {[%clk 0:00:05.5]} 59. Rxe1 {[%clk 0:00:06]}
59... Rxe1+ {[%clk 0:00:06.4]} 60. Ka2 {[%clk 0:00:06.8]} 60... Re2+ {[%clk
0:00:07.1]} 61. Ka1 {[%clk 0:00:07.2]} 61... Rd2 {[%clk 0:00:07.7]} 0-1

[Event "*** Titled Tuesday Blitz"]
[Site "Chess.com"]
[Date "2021.02.02"]
[Round "3"]
[White "NicoChasin"]
[Black "SHIVACalypso"]
[Result "1-0"]
[WhiteElo "2560"]
[BlackElo "2373"]
[TimeControl "180+1"]
[EndTime "10:32:24 PST"]
[Termination "NicoChasin won by checkmate"]

1. e4 {[%clk 0:03:00.7]} 1... e6 {[%clk 0:02:59.7]} 2. d4 {[%clk 0:02:59.9]}
2... d5 {[%clk 0:02:58.5]} 3. Nc3 {[%clk 0:02:59.5]} 3... Nf6 {[%clk 0:02:56.5]}
4. Bg5 {[%clk 0:02:57.6]} 4... dxe4 {[%clk 0:02:56]} 5. Nxe4 {[%clk 0:02:56.5]}
5... Be7 {[%clk 0:02:55.2]} 6. Bxf6 {[%clk 0:02:52.4]} 6... gxf6 {[%clk
0:02:55.1]} 7. Nf3 {[%clk 0:02:53.3]} 7... f5 {[%clk 0:02:49.5]} 8. Ng3 {[%clk
0:02:52.1]} 8... c5 {[%clk 0:02:48.4]} 9. dxc5 {[%clk 0:02:50.5]} 9... Bxc5
{[%clk 0:02:45.5]} 10. Qxd8+ {[%clk 0:02:49.3]} 10... Kxd8 {[%clk 0:02:46.4]}
11. Ne5 {[%clk 0:02:49.2]} 11... Ke7 {[%clk 0:02:44.4]} 12. Nd3 {[%clk
0:02:48.3]} 12... Bd6 {[%clk 0:02:43.5]} 13. O-O-O {[%clk 0:02:47.1]} 13... b6
{[%clk 0:02:35.7]} 14. Re1 {[%clk 0:02:43.1]} 14... Kf6 {[%clk 0:02:28.5]} 15.
Nh5+ {[%clk 0:02:42.3]} 15... Kg6 {[%clk 0:02:20.9]} 16. Nhf4+ {[%clk
0:02:40.3]} 16... Kg7 {[%clk 0:02:17]} 17. Rg1 {[%clk 0:02:36.1]} 17... h5
{[%clk 0:02:12.8]} 18. Be2 {[%clk 0:02:34.5]} 18... h4 {[%clk 0:02:09.4]} 19.
Bf3 {[%clk 0:02:33.9]} 19... e5 {[%clk 0:01:46.1]} 20. Nxe5 {[%clk 0:02:30.2]}
20... Bxe5 {[%clk 0:01:45]} 21. Rxe5 {[%clk 0:02:29.2]} 21... Nd7 {[%clk
0:01:45.5]} 22. Rxf5 {[%clk 0:02:25.1]} 22... Rb8 {[%clk 0:01:43.6]} 23. g3
{[%clk 0:02:23.4]} 23... h3 {[%clk 0:01:38.8]} 24. Rg5+ {[%clk 0:02:16.7]} 24...
Kf6 {[%clk 0:01:36.1]} 25. Rh5 {[%clk 0:02:15.6]} 25... Rxh5 {[%clk 0:01:33.6]}
26. Nxh5+ {[%clk 0:02:16.5]} 26... Kg5 {[%clk 0:01:31.1]} 27. Nf4 {[%clk
0:02:15]} 27... Ne5 {[%clk 0:01:31.3]} 28. Be4 {[%clk 0:02:14.7]} 28... Bf5
{[%clk 0:01:27.3]} 29. Bxf5 {[%clk 0:02:08.9]} 29... Kxf5 {[%clk 0:01:28.2]} 30.
Nxh3 {[%clk 0:02:09.1]} 30... Kg4 {[%clk 0:01:28.7]} 31. Nf4 {[%clk 0:02:08]}
31... Kf3 {[%clk 0:01:26.9]} 32. Re1 {[%clk 0:02:06.1]} 32... Ng4 {[%clk
0:01:19.8]} 33. Nd3 {[%clk 0:02:02.4]} 33... Nxh2 {[%clk 0:01:15.2]} 34. Re7
{[%clk 0:02:01.1]} 34... Rf8 {[%clk 0:01:12.2]} 35. Rxa7 {[%clk 0:01:59.6]}
35... Ng4 {[%clk 0:01:11.6]} 36. Ra4 {[%clk 0:01:52.6]} 36... f5 {[%clk
0:01:07]} 37. Rf4+ {[%clk 0:01:50.9]} 37... Ke2 {[%clk 0:01:05.7]} 38. f3 {[%clk
0:01:49.6]} 38... Ne3 {[%clk 0:01:01.3]} 39. g4 {[%clk 0:01:45.1]} 39... Rh8
{[%clk 0:01:01.3]} 40. b4 {[%clk 0:01:39.3]} 40... Rc8 {[%clk 0:00:33.4]} 41.
Kb1 {[%clk 0:01:25.3]} 41... Nxc2 {[%clk 0:00:20.1]} 42. Nc1+ {[%clk 0:01:23.2]}
42... Kd1 {[%clk 0:00:19.6]} 43. Rxf5 {[%clk 0:01:05.8]} 43... Na3+ {[%clk
0:00:19.3]} 44. Kb2 {[%clk 0:01:05.3]} 44... Nc4+ {[%clk 0:00:19.7]} 45. Kb3
{[%clk 0:01:03.2]} 45... Nd2+ {[%clk 0:00:18]} 46. Ka4 {[%clk 0:01:02.3]} 46...
Kxc1 {[%clk 0:00:11.9]} 47. Kb5 {[%clk 0:01:01]} 47... Nc4 {[%clk 0:00:10.6]}
48. Rf4 {[%clk 0:00:55.7]} 48... Nd6+ {[%clk 0:00:08.5]} 49. Kxb6 {[%clk
0:00:51.2]} 49... Kb2 {[%clk 0:00:09.2]} 50. a4 {[%clk 0:00:50.4]} 50... Ka3
{[%clk 0:00:07.8]} 51. a5 {[%clk 0:00:50.7]} 51... Nc4+ {[%clk 0:00:06.6]} 52.
Kb7 {[%clk 0:00:49.9]} 52... Nd6+ {[%clk 0:00:05.3]} 53. Ka6 {[%clk 0:00:49.6]}
53... Rc6+ {[%clk 0:00:02.8]} 54. Ka7 {[%clk 0:00:49.6]} 54... Ka4 {[%clk
0:00:03.1]} 55. g5 {[%clk 0:00:36.8]} 55... Kb5 {[%clk 0:00:03.1]} 56. Rd4
{[%clk 0:00:23.5]} 56... Rc7+ {[%clk 0:00:03.1]} 57. Kb8 {[%clk 0:00:20.9]}
57... Rd7 {[%clk 0:00:03.5]} 58. Rd5+ {[%clk 0:00:19.6]} 58... Kc6 {[%clk
0:00:03.6]} 59. Rc5# {[%clk 0:00:19.2]} 1-0